Cogmind - Beta 13 @@@ ROGUE MODE // 2024.06.30 @ 09:13:50 Player: Some Pennies Result: Destroyed by AG-62466 with Assembled Focal Cannon Performance ------------- Evolutions (3) 1500 Regions Visited (10) 2000 Robots Destroyed (150) 750 Value Destroyed (4633) 4633 Prototype IDs (60) 1200 Alien Tech Used (0) 0 Bonus (1532) 1532 TOTAL SCORE: 11615 Bonus ------- High Alert Combat Kills 232 Aligned with FarCom 300 Destroyed Z-Imprinter 1000 Cogmind --------- Core Integrity 0/700 Matter 265/300 Energy 89/100 System Corruption 0% Temperature Cool (12) Movement Treading (330) Ox2 Location -7/Deep Caves Parts ------- > --- POWER (1) -------- Zionite Light DM Reactor > --- PROPULSION (4) --- Armored Treads Armored Treads Zionite Composite Leg I > --- UTILITY (5) ------ Improved Cooling System Huge Storage Unit Armor Integrity Analyzer Phase Shifter Zionite Weapon Casing > --- WEAPON (3) ------- Zionite Laser-S Firepult > --- INVENTORY (25) --- Zionite Light DM Reactor Zionite Light DM Reactor Zionite Light DM Reactor Zionite Light DM Reactor Experimental Heat Sink Improved Cooling System Zionite Biocell (600) Experimental Sensor Array Weapon Cycler Transmission Jammer Zionite Weapon Casing Hardened Heavy Armor Plating Mobile Refinery Mk. CCLXVII Hacking Drone Bay (1/1) Zionite Laser-S Plasma Cannon Heavy Rocket Launcher Datajack Plasma Cutter Peak State ------------ > --- POWER ------------ Zionite Light DM Reactor > --- PROPULSION ------- Armored Treads Armored Treads Armored Treads Zionite Composite Leg I > --- UTILITY ---------- Improved Cooling System Huge Storage Unit Experimental Sensor Array Armor Integrity Analyzer Zionite Light Carapace > --- WEAPON ----------- Zionite Laser-S Zionite Laser-S Zionite Phaser-S > --- INVENTORY -------- Zionite Light DM Reactor Zionite Light DM Reactor Zionite Light DM Reactor Zionite Light DM Reactor Experimental Heat Sink Improved Cooling System Zionite Biocell Weapon Cycler Transmission Jammer Phase Shifter Phase Shifter Zionite Weapon Casing Zionite Weapon Casing Zionite Light Carapace Hardened Heavy Armor Plating Mobile Refinery Mk. CCLXVII Hacking Drone Bay Zionite Laser-S Plasma Cannon Firepult Heavy Rocket Launcher Datajack Plasma Cutter [Rating: 80] Favorites ----------- Power Improved Ion Engine Engine Improved Ion Engine Power Core Light Nuclear Core Reactor Zionite Light DM Reactor Propulsion Light Treads Treads Light Treads Leg Zionite Composite Leg I Wheel Compact Wheel Hover Unit Zionite Glidesys I Utility Huge Storage Unit Device Improved Cooling System Storage Huge Storage Unit Processor Advanced Visual Processing Unit Hackware Authchip [Power] Protection Reflective Plating Weapon Heavy Assault Cannon Energy Gun Zionite Laser-S Energy Cannon Heavy Ion Cannon Ballistic Gun Autogun Ballistic Cannon Heavy Assault Cannon Launcher Heavy Rocket Launcher Special Weapon Plasma Cutter Impact Weapon Great Maul Special Melee Weapon Datajack Build | -11 -10 -10 -10 -9 -8 -7 -7 -7 -7 -7 ------- Run | Yrd Mat Min Exi Min Mat Fac Low Low Zio Dee Slots Evolved 6 | . . . . . 4 2 . . . . Power . | . . . . . . . . . . . Propulsion 2 | . . . . . 2 . . . . . Utility 3 | . . . . . 2 1 . . . . Weapon 1 | . . . . . . 1 . . . . Parts Attached 196 | 7 13 4 3 6 70 24 2 . 20 47 Power 14 | 1 . 1 . 1 7 1 . . 1 2 Engine 11 | 1 . 1 . 1 6 1 . . 1 . Core 1 | . . . . . 1 . . . . . Reactor 2 | . . . . . . . . . . 2 Propulsion 37 | 2 2 1 . 1 20 4 . . . 7 Treads 31 | 1 2 . . 1 18 4 . . . 5 Leg 3 | . . . . . 2 . . . . 1 Wheel 2 | 1 . 1 . . . . . . . . Hover 1 | . . . . . . . . . . 1 Flight . | . . . . . . . . . . . Utility 77 | 2 4 2 . 2 24 5 2 . 13 23 Device 27 | 1 2 2 . 1 9 3 1 . 4 4 Storage 5 | 1 2 . . 1 . . . . . 1 Processor 4 | . . . . . 1 . 1 . 2 . Hackware 2 | . . . . . . . . . 2 . Protection 39 | . . . . . 14 2 . . 5 18 Artifact . | . . . . . . . . . . . Weapon 68 | 2 7 . 3 2 19 14 . . 6 15 Energy Gun 18 | 2 4 . . . 6 . . . . 6 Energy Cannon 17 | . 1 . 1 1 3 5 . . 3 3 Ballistic Gun 8 | . . . 1 . 7 . . . . . Ballistic Cannon 11 | . . . . . 3 5 . . . 3 Launcher 2 | . . . . 1 . . . . . 1 Special Weapon 5 | . . . . . . . . . 3 2 Impact Weapon 1 | . . . . . . 1 . . . . Slashing Weapon . | . . . . . . . . . . . Piercing Weapon . | . . . . . . . . . . . Special Melee Weapon 6 | . 2 . 1 . . 3 . . . . Unidentified Prototypes 13 | . . 1 . . . 1 . . 3 8 Corrupted Parts 2 | . . . . . 2 . . . . . System Corruption 8 | . . . . . 8 . . . . . Parts Lost 27 | . . . . . 10 . . . . 17 Power . | . . . . . . . . . . . Propulsion 10 | . . . . . 5 . . . . 5 Utility 11 | . . . . . 4 . . . . 7 Weapon 6 | . . . . . 1 . . . . 5 Highest Loss Streak 5 | . . . . . 3 . . . . 5 To Critical Strikes . | . . . . . . . . . . . Average Slot Usage (%) 95 | . 99 100 100 99 98 91 92 92 92 96 Engine 7 | . 14 14 14 14 7 7 7 7 7 1 Treads 29 | . 25 25 14 25 35 29 30 30 30 25 Device 10 | . 14 14 14 14 10 14 7 7 7 8 Storage 8 | . 14 14 14 14 9 7 7 7 7 7 Processor 8 | . . . . . 7 7 14 15 15 9 Protection 6 | . . . . . 8 7 7 7 6 10 Energy Gun 5 | . 14 14 3 . 4 . . . . 14 Energy Cannon 6 | . 12 14 14 14 2 5 7 7 6 2 Ballistic Gun 2 | . . . . 14 7 . . . . . Ballistic Cannon 4 | . . . . . 3 7 7 7 7 2 Naked Turns . | . . . . . . . . . . . Heaviest Build 125 | 14 32 32 32 92 105 121 120 118 122 125 Greatest Support 100 | 20 40 40 16 40 80 100 100 100 100 100 Greatest Overweight (x) 10 | . 1 1 1 10 2 1 1 1 1 1 Average Overweight (x) . | . . . 1 1 1 1 1 1 1 1 Largest Inventory Capacity 25 | 8 15 15 15 25 25 25 25 25 25 25 Average Capacity 22 | 7 9 15 15 23 25 25 25 25 25 25 Most Carried 25 | 4 14 15 15 23 25 25 25 25 25 25 Average Carried 22 | 2 9 14 14 20 24 24 25 25 24 24 Final Capacity 25 | 8 15 15 15 25 25 25 25 25 25 25 Final Carried 25 | 4 13 15 15 22 25 25 25 25 25 20 Class Distribution -------------------- 25% | Scavenger-Mutant 24% | Scavenger-Gunner 15% | Mutant 15% | Skirmisher 12% | Scavenger-Skirmisher 5% | Scavenger-Tank Dominant Class ---------------- Mutant | -10/Materials Mutant | -10/Mines Mutant | -10/Exiles Scavenger-Mutant | -9/Mines Scavenger-Mutant | -8/Materials Scavenger-Skirmisher | -7/Factory Skirmisher | -7/Lower Caves Skirmisher | -7/Lower Caves Scavenger-Gunner | -7/Zion Scavenger-Gunner | -7/Deep Caves Resources | -11 -10 -10 -10 -9 -8 -7 -7 -7 -7 -7 ----------- Run | Yrd Mat Min Exi Min Mat Fac Low Low Zio Dee Matter Collected 3965 | 270 165 50 10 95 1525 670 191 101 208 680 Remotely . | . . . . . . . . . . . Salvage Created 6196 | 64 1078 141 . 166 2793 1181 240 . 66 467 Parts 331 | 6 60 9 . 16 140 62 4 . 1 33 Haulers Intercepted 6 | . 2 . . . 3 1 . . . . Recyclers Shooed 8 | . 1 . . . 6 1 . . . . Parts Field Recycled . | . . . . . . . . . . . Retrieved Matter . | . . . . . . . . . . . Parts Self-Destructed 7 | . . . . . . . 4 . 3 . Prevented . | . . . . . . . . . . . Kills | -11 -10 -10 -10 -9 -8 -7 -7 -7 -7 -7 ------- Run | Yrd Mat Min Exi Min Mat Fac Low Low Zio Dee Combat Hostiles Destroyed 105 | . 22 5 . 4 42 14 2 . 1 15 Guns 40 | . 11 2 . . 26 . . . . 1 Cannons 50 | . 10 3 . . 13 14 2 . . 8 AOE 11 | . . . . 4 1 . . . . 6 Classes Destroyed 19 | 2 6 . . . 7 2 . . . 2 Worker 9 | . 2 . . 1 3 3 . . . . Builder 3 | . . . . . . 3 . . . . Tunneler 2 | 1 . . . . . 1 . . . . Hauler 6 | . 2 . . . 3 1 . . . . Recycler 19 | 1 2 . . 2 8 6 . . . . Mechanic 2 | . . . . . 1 1 . . . . Operator 1 | . 1 . . . . . . . . . Watcher 6 | . 2 . . . 3 1 . . . . Swarmer 13 | . 3 3 . 4 3 . . . . . Grunt 46 | . 19 2 . . 20 5 . . . . Brawler 4 | . . . . . 4 . . . . . Protector 1 | . . . . . 1 . . . . . Sentry 13 | . . . . . 9 3 1 . . . Specialist 2 | . . . . . 2 . . . . . Hunter 5 | . . . . . 2 1 1 . 1 . Programmer 5 | . . . . . . 5 . . . . Heavy 1 | . . . . . 1 . . . . . Z-Technician 5 | . . . . . . . . . . 5 Z-Light 11 | . . . . . . . . . . 11 Packrat 2 | . . . . . . . 2 . . . Assembled 3 | . . . . . . . . . . 3 Best Kill Streak 6 | 1 6 3 . 4 5 5 1 . 1 5 Combat Bots Only 4 | . 3 3 . 4 3 4 1 . 1 4 Max Kills in Single Turn 5 | 1 1 1 . 4 2 2 2 . 1 5 Gunslinging . | . . . . . . . . . . . Exploded 4 | . . . . 4 1 . . . . 2 Melee . | . . . . . . . . . . . Uniques/NPCs Destroyed 1 | . . . . . . . . . . 1 Z-Imprinter (-7/Deep Caves) Combat | -11 -10 -10 -10 -9 -8 -7 -7 -7 -7 -7 -------- Run | Yrd Mat Min Exi Min Mat Fac Low Low Zio Dee Hostile Shots Fired 544 | . 67 12 . 4 184 71 35 . . 171 Missed 163 | . 15 1 . 2 53 22 14 . . 56 Damage Taken 7714 | . 597 100 . 15 2338 633 177 . . 3854 Core 1036 | . 158 11 . . 120 32 23 . . 692 Absorbed by Shields . | . . . . . . . . . . . Redirected to Shielding 118 | . . . . . . . . . . 118 Ignored by Resistances 148 | . . . . . . . . . . 148 Regen/Repaired (Parts) 100 | . 89 . . . 11 . . . . . Core Remaining (%) 70 | 100 . . . 32 78 . . . . . Volleys Fired 424 | 9 83 8 . 5 175 70 8 10 2 54 Largest 3 | 2 2 2 . 2 2 2 2 1 2 3 Hottest 188 | 90 125 125 . 80 110 140 125 60 125 188 Shots Fired 810 | 17 163 16 . 9 344 123 16 12 3 107 Gun 338 | 17 91 8 . 4 200 2 . . . 16 Cannon 464 | . 72 8 . 4 144 121 16 12 3 84 Launcher 3 | . . . . 1 . . . . . 2 Special 5 | . . . . . . . . . . 5 Kinetic 351 | . . . . 4 220 65 8 12 1 41 Thermal 400 | 17 163 16 . 4 71 58 8 . 2 61 Explosive 6 | . . . . 1 . . . . . 5 Electromagnetic 53 | . . . . . 53 . . . . . Robot Hit Streak 18 | 2 11 4 . 9 18 11 7 . 2 4 Robot Miss Streak 7 | 2 7 3 . . 4 7 1 . . 6 Penetration Max 1 | . . . . . 1 . 1 . . . Secondary Targets 2 | . . . . . 2 . . . . . Max Gunslinging Chain 1 | . . . . . 1 . . . . . Shots Hit Robots 483 | 10 94 8 4 5 241 68 12 . 1 40 Core Hits 226 | 3 42 6 . 7 105 31 4 . . 28 Critical Kills 2 | . . . . . 1 . . . 1 . Critical Parts Destroyed . | . . . . . . . . . . . Critical Strikes 21 | 1 3 . . . 6 5 1 . 1 4 Burn 4 | 1 3 . . . . . . . . . Meltdown 1 | . . . . . . . . . 1 . Destroy 1 | . . . . . 1 . . . . . Blast 12 | . . . . . 3 5 1 . . 3 Corrupt 2 | . . . . . 2 . . . . . Sever 1 | . . . . . . . . . . 1 Melee Attacks 6 | . . . 4 . . 2 . . . . Impact . | . . . . . . . . . . . Slashing . | . . . . . . . . . . . Piercing . | . . . . . . . . . . . Sneak Attacks 6 | . . . 4 . . 2 . . . . Combat Hostiles . | . . . . . . . . . . . Follow-up Attacks . | . . . . . . . . . . . Damage Inflicted 14893 | 140 1545 134 . 277 4874 2885 496 . 26 4516 Guns 3925 | 140 874 61 . 9 2604 . . . . 237 Cannons 7497 | . 671 73 . 70 2209 2885 496 . 26 1067 Explosions 3397 | . . . . 198 61 . . . . 3138 Melee . | . . . . . . . . . . . Ramming . | . . . . . . . . . . . Kinetic 5667 | . . . . 9 2975 1806 305 . . 572 Thermal 7127 | 140 1545 134 . 70 1030 1079 191 . 26 2912 Explosive 1156 | . . . . 198 . . . . . 958 Electromagnetic 869 | . . . . . 869 . . . . . Impact . | . . . . . . . . . . . Slashing 74 | . . . . . . . . . . 74 Piercing . | . . . . . . . . . . . Highest Corruption 5 | . . . . . 5 1 1 1 1 . Average Corruption 1 | . . . . . 1 1 1 1 1 . Corruption Purged 9 | . . . . . 9 . . . . . Corruption Blocked . | . . . . . . . . . . . Effects 22 | . . . . . 8 2 2 9 1 . Message Errors 3 | . . . . . . . . 2 1 . Matter Fused 5 | . . . . . 2 1 1 1 . . Energy Discharges 2 | . . . . . . . . 2 . . Data Loss (minor) 8 | . . . . . 5 . 1 2 . . Misfires 4 | . . . . . 1 1 . 2 . . Overload Shots . | . . . . . . . . . . . Overflow Damage 756 | . . . . 3 7 298 76 . . 372 Projectiles 459 | . . . . . 6 298 76 . . 79 Explosions 297 | . . . . 3 1 . . . . 293 Melee . | . . . . . . . . . . . Knockbacks 24 | . . . . . 16 8 . . . . Impact . | . . . . . . . . . . . Kinetic 22 | . . . . . 14 8 . . . . Secondary 2 | . . . . . 2 . . . . . Self-Inflicted Damage 511 | . . . . . 41 . . . . 470 Shots 2 | . . . . . 1 . . . . 1 Rammed . | . . . . . . . . . . . Targets Rammed . | . . . . . . . . . . . Kicked . | . . . . . . . . . . . Crushed . | . . . . . . . . . . . Highest Temperature 366 | 130 366 132 . 22 126 167 137 20 . 321 Average Temperature 64 | 51 91 59 . 16 24 48 57 9 . 98 Received Heat Transfer 2393 | . 330 21 . . 873 135 24 . . 1010 Effects 2 | . 2 . . . . . . . . . Energy Bleed 1 | . 1 . . . . . . . . . Matter Decay 1 | . 1 . . . . . . . . . Siege Activations . | . . . . . . . . . . . Robots Corrupted 2 | . . . . . 2 . . . . . Combat Hostiles 2 | . . . . . 2 . . . . . Parts Fried 7 | . . . . . 7 . . . . . Impact Corruptions 1 | . . . . . 1 . . . . . Robots Melted 2 | . 1 . . . . . . . 1 . Combat Hostiles 2 | . 1 . . . . . . . 1 . Parts Melted 15 | . 10 . . . 1 . . . 2 2 Heat Transferred 9297 | 446 3838 296 . 148 1919 1382 259 . 37 972 Parts Sabotaged . | . . . . . . . . . . . Parts Stolen . | . . . . . . . . . . . Parts Stripped . | . . . . . . . . . . . Power Chain Reactions 1 | . . . . . 1 . . . . . Alert | -11 -10 -10 -10 -9 -8 -7 -7 -7 -7 -7 ------- Run | Yrd Mat Min Exi Min Mat Fac Low Low Zio Dee Peak Influence 795 | 10 430 241 . 124 795 393 . . . . Initial 294 | . 6 121 . . 1 294 . . . . Average 210 | 4 276 129 . 58 238 196 . . . . Maximum Alert Level 3 | . 2 1 . . 3 1 . . . . Low Security (%) 59 | 100 17 75 . 100 64 56 . . . . Level 1 28 | . 72 24 . . 9 43 . . . . Level 2 8 | . 9 . . . 17 . . . . . Level 3 3 | . . . . . 8 . . . . . Level 4 . | . . . . . . . . . . . Level 5 . | . . . . . . . . . . . High Security . | . . . . . . . . . . . Max Security . | . . . . . . . . . . . Squads Dispatched 23 | . 7 . . . 8 8 . . . . Investigation 11 | . 6 . . . 3 2 . . . . Extermination 5 | . . . . . . 5 . . . . Reinforcement 6 | . 1 . . . 4 1 . . . . Assault 1 | . . . . . 1 . . . . . Garrison . | . . . . . . . . . . . Intercept . | . . . . . . . . . . . Searches Triggered . | . . . . . . . . . . . Construction Impeded 1 | . . . . . 1 . . . . . Haulers Reinforced . | . . . . . . . . . . . Active Scanning Responses . | . . . . . . . . . . . Cargo Convoy Interrupts . | . . . . . . . . . . . Stealth | -11 -10 -10 -10 -9 -8 -7 -7 -7 -7 -7 --------- Run | Yrd Mat Min Exi Min Mat Fac Low Low Zio Dee Distress Signals 8 | . . . . . 5 3 . . . . Communications Jammed . | . . . . . . . . . . . Distress Signals . | . . . . . . . . . . . Times Spotted 133 | . 29 5 . 4 59 19 2 . 1 14 Peak Tracking Total 7 | . 4 3 . 4 7 7 1 . 1 4 Tactical Retreats 7 | . . . . . 6 1 . . . . Traps | -11 -10 -10 -10 -9 -8 -7 -7 -7 -7 -7 ------- Run | Yrd Mat Min Exi Min Mat Fac Low Low Zio Dee Traps Triggered 2 | . . . . . 1 1 . . . . Indirectly . | . . . . . . . . . . . Trap Hack Attempts 29 | . 13 . . . . 16 . . . . Triggered 1 | . 1 . . . . . . . . . Disarmed 1 | . 1 . . . . . . . . . Reprogrammed 3 | . . . . . . 3 . . . . Reused 1 | . . . . . . 1 . . . . Traps Extracted . | . . . . . . . . . . . Installed . | . . . . . . . . . . . Triggered 1 | . . . . . . 1 . . . . Machines | -11 -10 -10 -10 -9 -8 -7 -7 -7 -7 -7 ---------- Run | Yrd Mat Min Exi Min Mat Fac Low Low Zio Dee Machines Disabled 12 | . 1 . . 1 1 6 . . . 3 Max in Single Turn 4 | . 1 . . 1 1 4 . . . 2 Machines Repaired . | . . . . . . . . . . . Machines Dismantled 3 | . . . . . . . . . 3 . Machines Sabotaged . | . . . . . . . . . . . Overloaded Fab Kills . | . . . . . . . . . . . Hacking | -11 -10 -10 -10 -9 -8 -7 -7 -7 -7 -7 --------- Run | Yrd Mat Min Exi Min Mat Fac Low Low Zio Dee Machines Accessed 31 | . 10 . 2 . 11 8 . . . . Terminals 20 | . 7 . . . 8 5 . . . . Fabricators 2 | . . . . . . 2 . . . . Repair Stations 2 | . 1 . . . 1 . . . . . Recycling Units 2 | . 2 . . . . . . . . . Scanalyzers 2 | . . . . . 1 1 . . . . Garrison Access 1 | . . . . . 1 . . . . . Total Hacks 95 | . 34 . 2 . 43 16 . . . . Successful 50 | . 18 . 2 . 21 9 . . . . Failed 45 | . 16 . . . 22 7 . . . . Catastrophic 4 | . 1 . . . 2 1 . . . . Database Lockouts . | . . . . . . . . . . . Manual 31 | . 11 . 1 . 16 3 . . . . Terminals 62 | . 25 . . . 29 8 . . . . Fabricators 5 | . . . . . . 5 . . . . Repair Stations 7 | . 4 . . . 3 . . . . . Recycling Units 5 | . 5 . . . . . . . . . Scanalyzers 11 | . . . . . 8 3 . . . . Garrison Access 3 | . . . . . 3 . . . . . Terminal Hacks 28 | . 12 . 2 . 11 3 . . . . Record 1 | . . . 1 . . . . . . . Part Schematic 1 | . . . . . . 1 . . . . Robot Analysis 5 | . 3 . . . 2 . . . . . Prototype ID Bank 6 | . 3 . . . 3 . . . . . Branch Access Points 1 | . . . . . . 1 . . . . Emergency Access Points 3 | . 1 . . . 2 . . . . . Alert Level 1 | . . . . . 1 . . . . . Unreport Threat 1 | . . . . . 1 . . . . . Locate Traps 6 | . 3 . . . 2 1 . . . . Zone Layout 2 | . 2 . . . . . . . . . Derelict Proto ID Bank 1 | . . . 1 . . . . . . . Fabricator Hacks 3 | . . . . . . 3 . . . . Network Status 1 | . . . . . . 1 . . . . Load Schematic 1 | . . . . . . 1 . . . . Build 1 | . . . . . . 1 . . . . Repair Station Hacks 4 | . 2 . . . 2 . . . . . Scan Component 2 | . 1 . . . 1 . . . . . Repair 2 | . 1 . . . 1 . . . . . Recycling Unit Hacks 2 | . 2 . . . . . . . . . Retrieve Components 2 | . 2 . . . . . . . . . Scanalyzer 9 | . . . . . 7 2 . . . . Insert Component 6 | . . . . . 5 1 . . . . Analyze 3 | . . . . . 2 1 . . . . Garrison Access Hacks . | . . . . . . . . . . . Unauthorized Hacks 4 | . 2 . . . 1 1 . . . . Terminals 2 | . . . . . 1 1 . . . . Botnet 2 | . . . . . 1 1 . . . . Fabricators . | . . . . . . . . . . . Repair Stations . | . . . . . . . . . . . Recycling Units 2 | . 2 . . . . . . . . . Tunnel 2 | . 2 . . . . . . . . . Scanalyzers . | . . . . . . . . . . . Garrison Access . | . . . . . . . . . . . Data Cores Recovered . | . . . . . . . . . . . Used . | . . . . . . . . . . . Hacking Detections 25 | . 9 . . . 10 6 . . . . Full Trace Events 9 | . 4 . . . 3 2 . . . . Feedback Events 1 | . . . . . 1 . . . . . Corruption 1 | . . . . . 1 . . . . . Feedback Blocked . | . . . . . . . . . . . Robot Schematics Acquired 4 | . . . . . . . . . 4 . Robots Built . | . . . . . . . . . . . Authchips . | . . . . . . . . . . . Time . | . . . . . . . . . . . Total Robot Build Rating . | . . . . . . . . . . . Part Schematics Acquired 18 | . . . . . 2 2 . . 14 . Parts Built 1 | . . . . . . 1 . . . . Authchips . | . . . . . . . . . . . Time 36 | . . . . . . 36 . . . . Total Part Build Rating 3 | . . . . . . 3 . . . . Parts Repaired 2 | . 1 . . . 1 . . . . . Time 162 | . 26 . . . 136 . . . . . Parts Recycled . | . . . . . . . . . . . Recycled Matter . | . . . . . . . . . . . Retrieved Matter . | . . . . . . . . . . . Retrieved Components 9 | . 9 . . . . . . . . . Parts Scanalyzed 4 | . . . . . 3 1 . . . . Part Schematics Acquired 3 | . . . . . 2 1 . . . . Parts Damaged 1 | . . . . . 1 . . . . . Bothacking | -11 -10 -10 -10 -9 -8 -7 -7 -7 -7 -7 ------------ Run | Yrd Mat Min Exi Min Mat Fac Low Low Zio Dee Used RIF Installer . | . . . . . . . . . . . Robots Hacked 5 | . . . 4 . . 1 . . . . Non-combat 4 | . . . 3 . . 1 . . . . Combat 1 | . . . 1 . . . . . . . Robot Hacks Applied 6 | . . . 4 . . 2 . . . . parse_system 4 | . . . 4 . . . . . . . find_recycling 2 | . . . . . . 2 . . . . Relay Couplers Released . | . . . . . . . . . . . Fabnet Peak Effective % . | . . . . . . . . . . . Robots Rewired . | . . . . . . . . . . . Allies Hacked . | . . . . . . . . . . . Hacks Repelled . | . . . . . . . . . . . Allies | -11 -10 -10 -10 -9 -8 -7 -7 -7 -7 -7 -------- Run | Yrd Mat Min Exi Min Mat Fac Low Low Zio Dee Total Allies . | . . . . . . . . . . . Largest Group . | . . . . . . . . . . . Highest-Rated Group . | . . . . . . . . . . . Highest-Rated Ally . | . . . . . . . . . . . Total Orders . | . . . . . . . . . . . Ally Attacks . | . . . . . . . . . . . Total Damage . | . . . . . . . . . . . Kills . | . . . . . . . . . . . Allies Corrupted . | . . . . . . . . . . . Allies Melted . | . . . . . . . . . . . Intel | -11 -10 -10 -10 -9 -8 -7 -7 -7 -7 -7 ------- Run | Yrd Mat Min Exi Min Mat Fac Low Low Zio Dee Robot Analysis Total 5 | . 3 . . . 2 . . . . . Derelict Logs Recovered 3 | . . 1 . . . . 1 . 1 . Drone Launches . | . . . . . . . . . . . Drone Recoveries . | . . . . . . . . . . . Exploration | -11 -10 -10 -10 -9 -8 -7 -7 -7 -7 -7 ------------- Run | Yrd Mat Min Exi Min Mat Fac Low Low Zio Dee Turns Passed 17738 | 104 1503 672 399 718 4231 2584 440 1447 3040 2600 Spaces Moved 6895 | 63 730 429 337 248 1288 939 173 502 1237 949 Core 8 | 6 . . . 2 . . . . . . Treads 6288 | 6 694 315 . 185 1288 939 173 502 1237 949 Legs . | . . . . . . . . . . . Wheels 599 | 51 36 114 337 61 . . . . . . Hover . | . . . . . . . . . . . Flight . | . . . . . . . . . . . Fastest Speed 50 | 50 100 115 115 115 240 232 232 232 232 232 Average Speed 217 | 100 158 148 115 270 240 237 232 232 232 243 Slowest Speed 550 | 160 240 160 115 550 320 240 232 232 232 250 Overloaded Moves . | . . . . . . . . . . . Propulsion Burnouts . | . . . . . . . . . . . Robots Hopped . | . . . . . . . . . . . Cave-ins Triggered . | . . . . . . . . . . . Exploration Rate (%) 62 | 5 95 82 66 44 82 29 49 70 85 79 Regions Visited 10 Branch Regions 7 Pre-discovered Areas 5 | . 2 1 1 . . . . . 1 . Known Exits Taken 3 | . . . . . . 1 1 1 . . Unknown Exits Taken 7 | 1 1 1 1 1 1 . . . 1 . Scrap Searched 8 | . . 1 . 1 . . 1 . 5 . Spaces Dug 81 | . . . . 11 . 59 . 11 . . Terrain Destroyed 204 | . . . . 11 17 89 4 14 . 69 Melee . | . . . . . . . . . . . Projectile 90 | . . . . . 15 35 4 14 . 22 AOE 114 | . . . . 11 2 54 . . . 47 Terrain Rammed . | . . . . . . . . . . . Walls Destroyed . | . . . . . . . . . . . Machines Disabled . | . . . . . . . . . . . Actions | -11 -10 -10 -10 -9 -8 -7 -7 -7 -7 -7 --------- Run | Yrd Mat Min Exi Min Mat Fac Low Low Zio Dee Total 8774 | 83 915 449 346 287 2120 1145 191 770 1346 1122 Wait 927 | . 55 2 . 14 459 67 9 259 43 19 Move 6885 | 62 729 428 336 247 1287 938 172 501 1236 949 Hop . | . . . . . . . . . . . Pick Up 134 | 5 13 4 1 10 59 7 . . 6 29 Fast Attach 49 | 6 3 1 . 2 17 10 . . 8 2 Attach 50 | 1 . . . . 18 4 . . . 27 Detach 4 | . . . . . . 1 . . . 3 Swap 97 | . 10 3 3 4 35 10 2 . 12 18 Drop 142 | . 9 3 2 5 70 20 . . 12 21 Fire 424 | 9 83 8 . 5 175 70 8 10 2 54 Melee 6 | . . . 4 . . 2 . . . . Ram . | . . . . . . . . . . . Kick . | . . . . . . . . . . . Crush . | . . . . . . . . . . . Escape Stasis . | . . . . . . . . . . . Rewire . | . . . . . . . . . . . Trap 29 | . 13 . . . . 16 . . . . Miscellaneous 27 | . . . . . . . . . 27 . Route ------- -11/Scrapyard -10/Materials (discovered 4 exits: [*Mat x3] / [*Min]) -10/Mines (discovered 2 exits: [*Mat] / *Exi) -10/Exiles -9/Mines (discovered 2 exits: *Mat x2) -8/Materials (discovered 3 exits: *Fac x3) -7/Factory (discovered 5 exits: [*Fac] / *Sto x2 / *Low x2) -7/Lower Caves -7/Lower Caves -7/Zion (discovered 2 exits: [*Dee] / [*Pro]) -7/Deep Caves History --------- Turn | Location | Event 26 | -11/Scrapyard | Discovered new exit (range 15) 105 | -11/Scrapyard | Entered Materials 327 | -10/Materials | Build established: Mutant 382 | -10/Materials | Discovered new exit (range 5) 620 | -10/Materials | Discovered new exit (range 16) 681 | -10/Materials | Repaired Lgt. Treads 798 | -10/Materials | Discovered new exit (range 16) 1177 | -10/Materials | Core integrity fell below 50% 1279 | -10/Materials | Discovered new exit (range 16) 1608 | -10/Materials | Entered Mines 1646 | -10/Mines | Met a Derelict bent on vengeance 1714 | -10/Mines | Discovered new exit (range 12) 1817 | -10/Mines | Deemed a non-threat by the Exiles lab entrance 1819 | -10/Mines | Discovered new exit (range 5) 1954 | -10/Mines | Received a Rocket Launcher from a helpful Derelict 2131 | -10/Mines | Found a damaged Exp. Sensor Array with a note attached 2143 | -10/Mines | Found Prototype Device 2143 | -10/Mines | Identified Exp. Sensor Array 2280 | -10/Mines | Entered Exiles 2312 | -10/Exiles | Met 8R-AWN 2328 | -10/Exiles | Met EX-HEX 2360 | -10/Exiles | Met EX-BIN 2374 | -10/Exiles | Aligned with FarCom system 2375 | -10/Exiles | Given EX-Vault access code 2410 | -10/Exiles | Opened EX-Vault 2421 | -10/Exiles | Found Firepult 2445 | -10/Exiles | Warned to stay clear of 0b10 Research branches 2568 | -10/Exiles | Met EX-DEC 2599 | -10/Exiles | Learned location of Zion (-7) 2667 | -10/Exiles | Discovered new exit (range 10) 2679 | -10/Exiles | Left Exiles lab with Firepult 2679 | -10/Exiles | Entered Mines 2766 | -9/Mines | Joined a pair of Derelicts in attacking an 0b10 outpost 3035 | -9/Mines | Discovered new exit (range 6) 3067 | -9/Mines | Build established: Scavenger-Mutant 3342 | -9/Mines | Discovered new exit (range 14) 3397 | -9/Mines | Entered Materials 3397 | -8/Materials | Evolved 4 slots: Propulsion x2, Utility x2 3700 | -8/Materials | Build established: Scavenger-Skirmisher 4257 | -8/Materials | Build established: Scavenger-Mutant 4306 | -8/Materials | Discovered new exit (range 7) 5744 | -8/Materials | Discovered new exit (range 19) 6247 | -8/Materials | Repaired Broken Exp. Sensor Array 6532 | -8/Materials | Lost 3 parts (1n2u) 6612 | -8/Materials | Lost 3 parts (1n1u1w) 6997 | -8/Materials | First assault squad dispatched 7543 | -8/Materials | Discovered new exit (range 7) 7628 | -8/Materials | Entered Factory 7628 | -7/Factory | Evolved 2 slots: Utility x1, Weapon x1 7823 | -7/Factory | Fabricated Hvy. Assault Cannon (x1) 7909 | -7/Factory | Build established: Scavenger-Skirmisher 7923 | -7/Factory | Discovered new exit (range 17) 8071 | -7/Factory | Discovered new exit (range 20) 9578 | -7/Factory | Discovered new exit (range 13) 9852 | -7/Factory | Build established: Skirmisher 10023 | -7/Factory | Identified exit to Storage 10023 | -7/Factory | Identified exit to Lower Caves 10212 | -7/Factory | Entered Lower Caves 10242 | -7/Lower Caves | Attracted the attention of an 0b10 checkpoint 10620 | -7/Lower Caves | Discovered new exit (range 13) 10623 | -7/Lower Caves | Learned 4 Factory zone layouts 10649 | -7/Lower Caves | Identified exit to Lower Caves 10652 | -7/Lower Caves | Entered another Lower Caves area 11712 | -7/Lower Caves | Encountered a Warlord checkpoint 12078 | -7/Lower Caves | Discovered new exit (range 9) 12096 | -7/Lower Caves | Identified exit to Zion 12099 | -7/Lower Caves | Entered Zion 12160 | -7/Zion | Given the Hacking Drone Bay 12165 | -7/Zion | Found Prototype Device 12165 | -7/Zion | Identified Hacking Drone Bay 12374 | -7/Zion | System corruption cleaned by Quarantine Array 12425 | -7/Zion | Discovered new exit (range 15) 12469 | -7/Zion | Found Prototype Device 12469 | -7/Zion | Identified Mobile Refinery Mk. CCLXVII 12501 | -7/Zion | Build established: Scavenger-Gunner 12591 | -7/Zion | Found Prototype Special Weapon 12591 | -7/Zion | Identified RU-N14's Throwing Claymores 12596 | -7/Zion | Found RU-N14's Throwing Claymores 13015 | -7/Zion | Learned 12 Factory zone layouts 13018 | -7/Zion | Learned location of Warlord (-5) 14159 | -7/Zion | Learned Factory emergency access door positions 14581 | -7/Zion | Discovered new exit (range 5) 14584 | -7/Zion | Saw the warning signs outside the Deep Caves entrance 15139 | -7/Zion | Entered Deep Caves 15741 | -7/Deep Caves | Attacked by Z-Imprinter 15790 | -7/Deep Caves | Destroyed Z-Imprinter 15832 | -7/Deep Caves | Lost 5 parts (2n1u2w) 15873 | -7/Deep Caves | Found Prototype Protection 15887 | -7/Deep Caves | Identified Zio. Weapon Casing 15965 | -7/Deep Caves | Z-Facility disabled 15966 | -7/Deep Caves | Core integrity fell below 50% 15996 | -7/Deep Caves | Lost 3 parts (1n1u1w) 16040 | -7/Deep Caves | Core integrity fell below 20% 16173 | -7/Deep Caves | Found Zio. Weapon Casing 16339 | -7/Deep Caves | Found Zio. Weapon Casing 16497 | -7/Deep Caves | Found Zio. Weapon Casing 16590 | -7/Deep Caves | Build established: Scavenger-Tank 17614 | -7/Deep Caves | Build established: Scavenger-Gunner 17722 | -7/Deep Caves | Spotted AG-62466 17739 | -7/Deep Caves | Destroyed by AG-62466 with Assembled Focal Cannon Last Messages --------------- 16816_ GG-44O(z) destroyed. 16816_ Destroyed Phase Shifter. 16818_ BO-92X(z) Zio. Light Carapace severed. 16818_ Destroyed Zio. Glidesys I. 16818_ BO-92X(z) destroyed. 16820_ RU-N14's Throwing Claymores expended. 16837_ The unstable cave ceiling collapses. 16850_ Acquired Phase Shifter. 16851_ Acquired 20 matter. 16853_ The unstable cave ceiling collapses. 17036_ Dropped Zio. Light Carapace. 17063_ Acquired 10 matter. 17723_ AG-62466: "DSI9AT1D G8OHIBQ29FWG 26R186 QD12WHW8W33 TDK1 81FTS" 17726_ Zio. Phaser-S destroyed. 17726_ Arm. Treads destroyed. 17729_ Zio. Light Carapace destroyed. 17732_ Phase Shifter destroyed. 17732_ Zio. Light Carapace destroyed. 17738_ Dropped Zio. Laser-S. Map ----- +----------------------------------------------------+ | ??????????????????????????????????????????????## | | ??????????????????????????????????????????????# | | ??????????????????????????????????????????????? | | ?????????????????????????????????????????######## | | ?????????????????????????????????????????# | | ?????????????????????????????????????????# | | ???????????????????????????????????????????????## | | ????????????????????????????????????????????????# | | ???????????????????????????????????????????????## | | ???????????????????????????????????????????????# | | ?????????????????????? ????????????????????# | | ???????????????????? ???????????????????## | | ?????????????????** * #????????????????????# | | ??????????????? ##???????????????????? | | ????????????? g * g #???????????????????? | | ????????????? s s g #???????????????????? | | ???????????? * * #???????????????????? | | ???????????? * #???????????????????? | | ??????????? [[ [ #???????????????????? | | ??????????? #???????????????????? | | ??????????? #???????????????????? | | ?????????? * * [ ###?????????????????? | | ?????????? ;#???????########### | | ????????? s b ;#?????### | | ????????? ** #?????## | | ????????? * @ ####### ### | | ?????????G * #??? | | ??????????" * g * b #???? | | ?????????? ##??? | | ?????????? ######### ##?? | | ??????????? #???????#### ### | | ??????????? ##??????????## | | ??????????? # # #????????????# | | ???????????? #### ## ## ##????????????## ### | | ???????????? #????# ?# ?###??????????????#####?? | | ???????????????????#??# ????????????????????????? | | ???????????????????????#????????????????????????? | | | | | | | | | | | | | | | | | | | | | | | | | | | +----------------------------------------------------+ Best States ------------- Heat Dissipation 61 Energy Generation 27 Energy Capacity 700 Matter Stores 300 Matter Capacity 300 Sight Range 20 Robot Scan Range 20 Terrain Scan Range 16 Terrain Scan Density 10 Jamming Range 12 Armor Coverage 600 Resistance: TH 10 Weapon Shielding 100 Evasion (%) 40 Core Analysis 6 Armor Integrity Analysis 30 Recoil Reduction 4 Authchip Count 1 Item Schematics ----------------- Lgt. Armor Plating | -8/Materials | Scanalyzed Med. Armor Plating | -8/Materials | Scanalyzed Hvy. Assault Cannon | -7/Factory | Scanalyzed Imp. Medium Treads | -7/Factory | Hacked Thermal Shield | -7/Zion | Archive Mak. Laser | -7/Zion | Archive Lrn. Proton Cannon | -7/Zion | Archive Core Analyzer | -7/Zion | Archive Imp. Thermal Generator | -7/Zion | Archive Microactuators | -7/Zion | Archive Nuclear Pulse Thruster | -7/Zion | Archive Launcher Guidance Computer | -7/Zion | Archive Matter Compressor | -7/Zion | Archive Mak. Power Source | -7/Zion | Archive Gatling Laser | -7/Zion | Archive Adv. Terrain Scanner | -7/Zion | Archive Adv. Heat Sink | -7/Zion | Archive Arc Projector | -7/Zion | Archive Robot Schematics ------------------ Y-54 Guardian | -7/Zion | Archive T-07 Excavator | -7/Zion | Archive B-36 Bruiser | -7/Zion | Archive D-83 Annihilator | -7/Zion | Archive Fabricated ------------ Hvy. Assault Cannon | x1 | -7/Factory Alien Tech Used ----------------- None Achievements -------------- Are We The Baddies? Challenges ------------ None Game ------ Seed SigixSmartbombLoader Manual? 0 Play Time 02:05:54 Cumulative 174.7 hours Start 2024.06.29 @ 15:08:14 End 2024.06.30 @ 09:13:50 Sessions 5 Manual Loads 0 Difficulty Rogue Special Mode None Game No. 147 Rogue 142 Adventurer 5 Explorer 0 Win Type - Total 3 Types 2/0/1/0/0/0/0/0/0 Lore% 65 Gallery% 76 Achievement% 56 Wizard Run 0 Options --------- Layout 2 ASCII 0 Keyboard 0 Movement Mouse Keybinds 0 Fullscreen 2 Font 24/Smallcaps Map View 50x44 Zoom Use 0% Tactical HUD 1 Map Filters NONE Filters NONE Steam 1 RUN: 826149b7-cb4d-4de8-b91d-b17af9153631